fUST/lending_fUST_20240106
["ID","MTS","AMOUNT","RATE_DAILY","PERIOD"]
[310358500,1704503440817,-545.94,0.00036164,3]
[310358504,1704503440826,-500.0,0.00036164,3]
[310358505,1704503440835,-500.0,0.00036164,3]
[310358509,1704503440847,-500.0,0.00036164,3]
[310358512,1704503440857,-780.42,0.00036164,3]
[310358515,1704503440866,-306.7,0.00036164,3]
[310358518,1704503440875,-500.0,0.00036164,3]
[310358520,1704503440884,-10865.57,0.00036164,3]
[310358524,1704503440893,-500.0,0.00036164,3]
[310358527,1704503440902,-1633.64,0.00036164,3]
[310358530,1704503440911,-500.0,0.00036164,3]
[310358533,1704503440921,-1039.98,0.00036164,3]
[310358535,1704503440930,-250.0,0.00036164,2]
[310358537,1704503440939,-250.0,0.00036164,2]
[310358539,1704503440948,-151.0,0.00036164,2]
[310358541,1704503440956,-151.0,0.00036164,2]
[310358543,1704503440966,-734.013682,0.00036164,2]
[310358545,1704503440976,-734.013682,0.00036164,2]
[310358547,1704503440986,-651.421171,0.00036164,2]
[310358549,1704503440996,-651.421171,0.00036164,2]
[310358551,1704503441005,-189.0,0.00036247,2]
[310358553,1704503441014,-2823.9665477,0.00036279,3]
[310358555,1704503441025,-552.65110653,0.00036279,3]
[310358557,1704503441034,-2128.23787749,0.00036279,2]
[310358559,1704503441042,-2359.18935954,0.00036279,2]
[310358561,1704503441051,-5000.0,0.00036279,7]
[310358563,1704503441062,-500.0,0.00036438,3]
[310358565,1704503441072,-545.94,0.00036438,3]
[310358566,1704503441081,-500.0,0.00036438,3]
[310358567,1704503441090,-500.0,0.00036438,3]
[310358569,1704503441100,-500.0,0.00036438,3]
[310358571,1704503441109,-780.42,0.00036438,3]
[310358572,1704503441118,-500.0,0.00036438,3]
[310358573,1704503441127,-10865.57,0.00036438,3]
[310358574,1704503441136,-500.0,0.00036438,3]
[310358575,1704503441145,-1633.64,0.00036438,3]
[310358577,1704503441154,-500.0,0.00036438,3]
[310358579,1704503441163,-1039.98,0.00036438,3]
[310358581,1704503441172,-1271.86892421,0.00036458,2]
[310358583,1704503441182,-500.0,0.00036712,3]
[310358585,1704503441191,-545.94,0.00036712,3]
[310358587,1704503441200,-225.23993188,0.00036712,3]
[310358589,1704503441209,-500.0,0.00036712,3]
[310358591,1704503441219,-500.0,0.00036712,3]
[310358593,1704503441228,-780.42,0.00036712,3]
[310358595,1704503441238,-500.0,0.00036712,3]
[310358597,1704503441247,-10865.57,0.00036712,3]
[310358599,1704503441257,-500.0,0.00036712,3]
[310358601,1704503441267,-1633.64,0.00036712,3]
[310358603,1704503441276,-500.0,0.00036712,3]
[310358605,1704503441285,-1039.98,0.00036712,3]
[310358607,1704503441295,-187.13002301,0.00036986,3]
[310358609,1704503441305,-545.94,0.00036986,3]
[310358611,1704503441315,-500.0,0.00036986,3]
[310358613,1704503441325,-500.0,0.00036986,3]
[310358615,1704503441334,-780.42,0.00036986,3]
[310358617,1704503441344,-500.0,0.00036986,3]
[310358619,1704503441354,-10865.57,0.00036986,3]
[310358621,1704503441363,-500.0,0.00036986,3]
[310358623,1704503441372,-1633.64,0.00036986,3]
[310358625,1704503441381,-500.0,0.00036986,3]
[310358627,1704503441390,-1039.98,0.00036986,3]
[310358629,1704503441400,-250.0,0.00036986,2]
[310358631,1704503441408,-250.0,0.00036986,2]
[310358633,1704503441418,-151.0,0.00036986,2]
[310358635,1704503441428,-151.15292337,0.00036986,2]
[310358637,1704503441437,-734.013682,0.00036986,2]
[310358639,1704503441447,-734.013682,0.00036986,2]
[310358641,1704503441456,-651.421171,0.00036986,2]
[310358643,1704503441465,-651.421171,0.00036986,2]
[310358645,1704503441474,-1737.946944,0.00037075,2]
[310358647,1704503441483,-300.0,0.000372,19]
[310358649,1704503441493,-1969.991472,0.000372,2]
[310358651,1704503441503,-545.94,0.0003726,3]
[310358653,1704503441513,-500.0,0.0003726,3]
[310358655,1704503441524,-500.0,0.0003726,3]
[310358657,1704503441532,-780.42,0.0003726,3]
[310358659,1704503441542,-500.0,0.0003726,3]
[310358661,1704503441551,-10865.57,0.0003726,3]
[310358663,1704503441561,-500.0,0.0003726,3]
[310358665,1704503441570,-1633.64,0.0003726,3]
[310358667,1704503441580,-500.0,0.0003726,3]
[310358669,1704503441589,-1039.98,0.0003726,3]
[310358671,1704503441600,-27534.42206679,0.000373,2]
[310358673,1704503441610,-51515.25911469,0.000375,2]
[310358675,1704503441619,-250.0,0.000375,2]
[310358677,1704503441628,-250.0,0.000375,2]
[310358679,1704503441638,-151.0,0.000375,2]
[310358681,1704503441647,-734.013682,0.000375,2]
[310358683,1704503441657,-734.013682,0.000375,2]
[310358685,1704503441666,-651.421171,0.000375,2]
[310358687,1704503441675,-651.421171,0.000375,2]
[310358689,1704503441684,-545.94,0.00037534,3]
[310358691,1704503441693,-500.0,0.00037534,3]
[310358693,1704503441702,-500.0,0.00037534,3]
[310358695,1704503441710,-780.42,0.00037534,3]
[310358697,1704503441720,-500.0,0.00037534,3]
[310358699,1704503441729,-10865.57,0.00037534,3]
[310358701,1704503441738,-567.37479634,0.00037534,3]
[310358703,1704503441747,-1633.64,0.00037534,3]
[310358705,1704503441755,-190.60679305,0.00037534,3]
[310358707,1704503441764,-1039.98,0.00037534,3]
[310358709,1704503441773,-160.18794809,0.00037755,2]
[310358711,1704503441782,-150.77383924,0.00037803,2]
[310358713,1704503441791,-545.94,0.00037808,3]
[310358714,1704503441800,-478.88556862,0.00037808,3]
[310358716,1704503441810,-500.0,0.00037808,3]
[310358718,1704503441819,-780.42,0.00037808,3]
[310358721,1704503441829,-500.0,0.00037808,3]
[310358723,1704503441838,-10865.57,0.00037808,3]
[310358724,1704503441848,-1633.64,0.00037808,3]
[310358727,1704503441858,-1039.98,0.00037808,3]
[310358729,1704503441867,-5000.0,0.00037846,7]
[310358731,1704503441876,-155.0,0.000379,2]
[310358732,1704503441885,-301.51,0.00037991,2]
[310358734,1704503441894,-301.51,0.00037991,2]
[310358736,1704503441904,-198182.72273273,0.00037992,2]
[310359058,1704503446717,-9308.86,0.00030989,3]
[310359059,1704503446735,-5000.0,0.00036279,7]
[310359060,1704503446748,-32948.22821818,0.00037992,2]
[310359313,1704504332156,-269.25366734,0.00026785,2]
[310359314,1704504332180,-606.05349002,0.00026786,2]
[310359315,1704504332202,-151.90143304,0.0002679,2]
[310359316,1704504332223,-2329.64937995,0.00026998,2]
[310359317,1704504431092,-2683.88285205,0.00026998,2]
[310359318,1704504431113,-166.666666,0.00028109,2]
[310359319,1704504431134,-1861.99833698,0.00028298,2]
[310359325,1704504554086,-102.54171062,0.00028298,2]
[310359326,1704504554107,-1618.70156878,0.00028492,2]
[310359327,1704504554127,-312.6,0.000288,2]
[310359328,1704504554147,-5166.36725121,0.00028928,2]
[310359329,1704504559084,-3124.00933157,0.00028928,2]
[310359405,1704504632690,-312.6,0.000288,2]
[310359407,1704504632700,-936.58599466,0.00028928,2]
[310359409,1704504632713,-5094.81289216,0.00028928,2]
[310359410,1704504632723,-3530.9275561,0.00029136,2]
[310359411,1704504632732,-180.849427,0.00029999,2]
[310359412,1704504632742,-273.8599971,0.00030998,2]
[310359413,1704504632751,-182.4151199,0.00030998,4]
[310359414,1704504632761,-181.49339236,0.00030998,4]
[310359415,1704504632770,-155.15930087,0.00030998,4]
[310359417,1704504632780,-372.67940215,0.00030998,2]
[310359419,1704504632789,-155.37403124,0.00030998,4]
[310359421,1704504632799,-480.90157613,0.00030999,2]
[310359423,1704504632807,-112.75604044,0.00030999,2]
[310359513,1704504641050,-1850.3568932,0.0003099,3]
[310359594,1704504641936,-1997.5631068,0.0003099,3]
[310359596,1704504641946,-498.28471357,0.00030999,2]
[310359598,1704504641955,-494.84375967,0.00030999,2]
[310359600,1704504641964,-1901.11812048,0.00031,4]
[310359761,1704504643918,-343.49604143,0.00028928,7]
[310360397,1704505633101,-1577.33542027,0.0002621,2]
[310360398,1704505633125,-533.8676922,0.0002621,2]
[310360400,1704505693933,67979.42159798,0.0002621,7]
[310360401,1704505747098,-2032.94928911,0.00026209,2]
[310360402,1704505747119,-18387.05071089,0.0002621,2]
[310360403,1704505755081,-1258.00534291,0.0002621,2]
[310360404,1704505755102,-182.40769,0.0002621,2]
[310360405,1704505755123,-5210.03643091,0.0002621,2]
[310360406,1704505755144,-250.0,0.00026215,2]
[310360407,1704505755165,-1536.81954953,0.00026401,2]
[310360451,1704505831886,-151.42402437,0.00026348,2]
[310360453,1704505831896,-182.40769,0.00026401,2]
[310360455,1704505831906,-2512.57900569,0.00026401,2]
[310360521,1704505837946,-2697.45742522,0.00026401,2]
[310360522,1704505837955,-107.17306547,0.00026401,2]
[310360523,1704505837963,-5193.30400316,0.00026649,2]
[310360690,1704505840939,-279.54,0.00026649,2]
[310360748,1704505842927,-1944.87113834,0.00026649,2]
[310361463,1704505954197,20000.0,0.00026649,7]
[310361466,1704506186371,279.04,0.00029,30]
[310361472,1704506730683,200.0,0.00026163,15]
[310361489,1704506851089,-360.43132424,0.0002378,2]
[310361490,1704506851112,-253.16113945,0.00023781,2]
[310361493,1704506952101,-180.849427,0.00023395,2]
[310361494,1704506952122,-2091.44093784,0.0002378,2]
[310361495,1704506952145,-2367.65730059,0.00023781,2]
[310361500,1704506973252,-1679.20813306,0.00023781,2]
[310361566,1704507032005,-3066.39956362,0.00023781,2]
[310361672,1704507038149,-1952.62615682,0.00023781,2]
[310361674,1704507038161,-1206.57391848,0.00023781,2]
[310361676,1704507038170,-546.3627241,0.00023781,2]
[310361678,1704507038181,-860.12683361,0.00023785,2]
[310361680,1704507038190,-7136.79432745,0.00023786,2]
[310361682,1704507038202,-8527.73529985,0.00023786,2]
[310361684,1704507038212,-9680.6974347,0.00024034,2]
[310361686,1704507038223,-4309.2313149,0.00024311,2]
[310361688,1704507038233,-150.0,0.00024549,2]
[310361690,1704507038243,-1404.41879428,0.00025297,2]
[310361692,1704507038253,-240.49392457,0.00026,2]
[310361694,1704507038263,-3996.56048711,0.000264,2]
[310361696,1704507038272,-183.15189024,0.00026401,2]
[310361697,1704507038281,-1607.31876821,0.00026401,2]
[310361699,1704507038290,-155.66065625,0.00026401,2]
[310361701,1704507038299,-3085.54190579,0.00026401,2]
[310361703,1704507038308,-618.35104899,0.00026401,2]
[310361705,1704507038317,-169.27066035,0.00026649,2]
[310361707,1704507038327,-766.9192024,0.000275,2]
[310361709,1704507038336,-1991.5459451,0.00027898,2]
[310361711,1704507038345,-155.14467076,0.00028781,2]
[310361713,1704507038354,-312.6006807,0.000288,2]
[310361715,1704507038363,-1003.93973393,0.00028926,2]
[310361717,1704507038372,-294.96497014,0.00028926,2]
[310361719,1704507038381,-155.50358636,0.00028926,2]
[310361721,1704507038390,-545.82490815,0.00028926,2]
[310361723,1704507038399,-166.87429889,0.00028927,2]
[310361725,1704507038408,-155.08623597,0.00028928,2]
[310361728,1704507038430,-155.03658312,0.00028928,2]
[310361729,1704507038439,-3388.41467337,0.00029,2]
[310361730,1704507038449,-150.0,0.00029549,2]
[310361731,1704507038459,-156.6445397,0.000299,2]
[310361732,1704507038469,-3515.21,0.0002999,3]
[310361733,1704507038479,-199.23328277,0.00029998,2]
[310361734,1704507038489,-2805.44527708,0.00029998,2]
[310361735,1704507038499,-270.03891246,0.00029998,2]
[310361736,1704507038508,-999.16803811,0.00029998,2]
[310361737,1704507038518,-579.65197804,0.00029998,2]
[310361738,1704507038527,-155.2154431,0.00029998,2]
[310361739,1704507038536,-260.66343676,0.00029998,2]
[310361740,1704507038545,-171.85829024,0.00029998,2]
[310361741,1704507038555,-366.61042943,0.00029998,2]
[310361742,1704507038566,-8627.80807493,0.00029999,2]
[310361743,1704507038575,-5295.15181582,0.0003,4]
[310361744,1704507038585,-1000.0,0.0003,2]
[310361745,1704507038595,-786.34674862,0.0003,4]
[310361746,1704507038604,-352.0,0.0003,2]
[310361747,1704507038614,-154.79876161,0.0003,2]
[310361748,1704507038624,-544.71015527,0.00030129,4]
[310361749,1704507038633,-500.0,0.00030129,4]
[310361750,1704507038643,-400.84132479,0.00030129,4]
[310361751,1704507038653,-500.0,0.00030129,4]
[310361752,1704507038667,-473.54427456,0.00030129,4]
[310361753,1704507038676,-619.68641449,0.00030129,4]
[310361754,1704507038686,-397.2563731,0.00030129,4]
[310361755,1704507038695,-500.0,0.00030129,4]
[310361756,1704507038705,-500.0,0.00030129,4]
[310361757,1704507038715,-500.0,0.00030129,4]
[310361758,1704507038724,-500.0,0.00030129,2]
[310361759,1704507038734,-485.48908691,0.00030129,2]
[310361760,1704507038744,-500.0,0.00030129,2]
[310361761,1704507038755,-397.6829421,0.00030129,2]
[310361762,1704507038765,-349.28563063,0.00030129,2]
[310361763,1704507038774,-307.08,0.00030129,2]
[310361764,1704507038783,-307.08,0.00030129,2]
[310361765,1704507038792,-307.08,0.00030129,2]
[310361766,1704507038801,-307.08,0.00030129,2]
[310361767,1704507038811,-307.08,0.00030129,2]
[310361768,1704507038821,-307.08,0.00030129,2]
[310361769,1704507038830,-523163.93195081,0.0003013,3]
[310361770,1704507038845,-23048.03171855,0.0003013,3]
[310361771,1704507038858,-1008.02865226,0.0003013,3]
[310361772,1704507038876,-307.08,0.00030129,2]
[310361773,1704507038887,-39854.66070793,0.0003013,3]
[310361939,1704508149135,-1029.74071675,0.0002378,2]
[310361940,1704508149155,-348.32045583,0.00023781,2]
[310361941,1704508149175,-647.59581769,0.00023781,2]
[310361943,1704508157095,-628.9612964,0.00023781,2]
[310361997,1704508232174,-97.48400202,0.00023781,2]
[310361999,1704508232184,-303.84561395,0.00027,2]
[310362083,1704508238350,-10272.46507257,0.00023781,2]
[310362085,1704508238360,-2151.49111331,0.00027,2]
[310362087,1704508238370,-4437.38393043,0.00027808,2]
[310362089,1704508238379,-312.6006807,0.000288,2]
[310362091,1704508238388,-206.893831,0.00029004,2]
[310362093,1704508238398,-156.29853474,0.000298,2]
[310362095,1704508238407,-1968.13290258,0.0003,3]
[310362097,1704508238416,-7024.65913284,0.0003,4]
[310362099,1704508238426,-154.81422293,0.0003,2]
[310362101,1704508238435,-269.32712482,0.00030128,4]
[310362102,1704508238445,-155.50631313,0.00030128,30]
[310362104,1704508238454,-500.0,0.00030129,4]
[310362107,1704508238464,-381.29710868,0.00030129,4]
[310362108,1704508238473,-400.8413248,0.00030129,4]
[310362110,1704508238483,-500.0,0.00030129,4]
[310362113,1704508238493,-500.0,0.00030129,4]
[310362114,1704508238502,-491.90345849,0.00030129,4]
[310362116,1704508238511,-438.35382386,0.00030129,4]
[310362118,1704508238521,-500.0,0.00030129,2]
[310362120,1704508238530,-636.96422298,0.00030129,2]
[310362123,1704508238540,-330.03087305,0.00030129,2]
[310362125,1704508238549,-478343.52273008,0.0003013,2]
[310362127,1704508238561,-78.00011714,0.0003013,2]
[310362129,1704508238571,-3130.1642428,0.00030137,2]
[310362131,1704508238580,-156.64453968,0.00030798,2]
[310362133,1704508238590,-751.74260324,0.00030798,4]
[310362135,1704508238599,-18831.81090257,0.000308,2]
[310362483,1704509082668,-406.9016644,0.00021633,2]
[310362484,1704509082846,-8.3041156,0.00021633,2]
[310362486,1704509278931,-5000.0,0.00021559,2]
[310362487,1704509279079,-5000.0,0.00021559,2]
[310362488,1704509279354,-5000.0,0.00021559,2]
[310362489,1704509279389,-5000.0,0.00021559,2]
[310362490,1704509279515,-4900.0,0.00021559,2]
[310362491,1704509349251,-269.29457861,0.0002204,2]
[310362492,1704509349272,-360.43132424,0.0002204,2]
[310362493,1704509349293,-1465.14583138,0.00022041,2]
[310362494,1704509349312,-154.82968734,0.00022041,2]
[310362495,1704509349332,-975.25077315,0.00022042,2]
[310362496,1704509349352,-4784.50329475,0.00022042,2]
[310362497,1704509349372,-2032.94928911,0.00022042,2]
[310362498,1704509349392,-10210.10468495,0.00022042,2]
[310362499,1704509365514,-5000.0,0.00021559,2]
[310362500,1704509365879,-210.01915065,0.00021559,2]
[310362512,1704509397530,-5000.0,0.00021559,2]
[310362513,1704509397835,-210.01915065,0.00021559,2]
[310362529,1704509417560,-4508.48558355,0.00021559,2]
[310362530,1704509417861,-92.00990987,0.00021559,2]
[310362541,1704509431281,-293.08727066,0.00021559,2]
[310362542,1704509431577,-5.98137287,0.00021559,2]
[310362654,1704509434182,-152.47868896,0.00021941,2]
[310362655,1704509434193,-155.45702832,0.0002204,2]
[310362656,1704509434204,-5948.34132013,0.00022041,2]
[310362657,1704509434215,-26577.27858257,0.00022042,2]
[310362658,1704509434227,-378.3571145,0.00022064,2]
[310362659,1704509434237,-2091.44093784,0.00023,2]
[310362660,1704509434248,-159.31921027,0.00023024,2]
[310362661,1704509434259,-171.194889,0.00023087,2]
[310362662,1704509434270,-18723.01036489,0.00023091,2]
[310362664,1704509434279,-3383.74115845,0.00023092,2]
[310362712,1704509438577,-605.98256708,0.00021559,2]
[310362726,1704509438699,-12.36699116,0.00021559,2]
[310362748,1704509441569,-616.6424234,0.00023092,2]
[310362749,1704509441595,-204.48800148,0.00023092,2]
[310362750,1704509441606,-269.76453851,0.00023099,2]
[310362751,1704509441616,-171.194889,0.00026234,2]
[310362752,1704509441627,-1045.5461371,0.00027628,2]
[310362753,1704509441829,-1198.5063617,0.00027718,2]
[310362754,1704509441846,-2103.19120358,0.00027718,2]
[310362755,1704509441856,-166.82006577,0.0002772,2]
[310362756,1704509441866,-303.81695405,0.0002803,2]
[310362757,1704509441875,-312.6006807,0.000288,2]
[310362758,1704509441885,-154.75411822,0.0002939,2]
[310362759,1704509441894,-3183.87404588,0.000295,30]
[310362760,1704509441904,-499.42350709,0.0002985,5]
[310362761,1704509441913,-5504.58803378,0.0003,4]
[310362762,1704509441930,-1526.47574794,0.0003,4]
[310362763,1704509441939,-222.0,0.0003,2]
[310362764,1704509441949,-154.75411821,0.0003038,2]
[310362765,1704509441958,-626.33473121,0.00030383,2]
[310362766,1704509441967,-4348.95645033,0.00030488,4]
[310362767,1704509441982,-5866.4231765,0.00030488,4]
[310362768,1704509441996,-7269.75057605,0.00030488,4]
[310362769,1704509442006,-3346.16,0.0003069,3]
[310362770,1704509442015,-170.39056833,0.00030698,2]
[310362771,1704509442024,-269.21275607,0.00030698,2]
[310362772,1704509442034,-1131.72053353,0.00030698,4]
[310362773,1704509442043,-622.52315479,0.00030698,2]
[310362774,1704509442052,-445.87495608,0.00030698,2]
[310362775,1704509442062,-4776.06737273,0.00030699,4]
[310362776,1704509442071,-363.01229432,0.00030699,4]
[310362777,1704509442080,-163.41304658,0.00030699,4]
[310362778,1704509442090,-500.0,0.00030699,4]
[310362779,1704509442099,-243.92759386,0.00030699,4]
[310362780,1704509442107,-500.0,0.00030699,4]
[310362781,1704509442117,-16364.40770865,0.000307,2]
[310362782,1704509442137,-533.77421894,0.000307,2]
[310362783,1704509442148,-261.546,0.000307,2]
[310362806,1704509445242,5948.34132013,0.00019836,2]
[310362809,1704509449169,-291.6995983,0.00021559,2]
[310362810,1704509449309,-5.95305303,0.00021559,2]
[310362815,1704509495212,-258.64470002,0.00021559,2]
[310362816,1704509495372,-5.27846327,0.00021559,2]
[310362817,1704509500609,-611.79452124,0.00021559,2]
[310362818,1704509500909,-12.48560247,0.00021559,2]
[310362821,1704509561645,-154.8915759,0.00021559,2]
[310362822,1704509561673,-4845.1084241,0.00021559,2]
[310362823,1704509561946,-364.92800681,0.00021559,2]
[310362824,1704509562699,182.40769,0.00021559,2]
[310362825,1704509581078,-5000.0,0.00021559,2]
[310362826,1704509581332,-5000.0,0.00021559,2]
[310362827,1704509581478,-272.46507257,0.00021559,2]
[310362828,1704509582863,154.82968734,0.00021559,2]
[310362829,1704509597304,-5000.0,0.00021559,2]
[310362830,1704509597379,-416.43271432,0.00021559,2]
[310362831,1704509613728,-158.09610522,0.00021559,2]
[310362832,1704509613755,-669.14971009,0.00021559,2]
[310362833,1704509613861,-16.88256766,0.00021559,2]
[310362834,1704509627727,-676.52217813,0.00021559,2]
[310362835,1704509627970,-13.80657506,0.00021559,2]
[310362836,1704509647252,-5000.0,0.00021559,2]
[310362837,1704509647469,-5000.0,0.00021559,2]
[310362838,1704509647553,-263.52088897,0.00021559,2]
[310362839,1704509669782,-5000.0,0.00021559,2]
[310362840,1704509670040,-5000.0,0.00021559,2]
[310362841,1704509670194,-263.52088897,0.00021559,2]
[310362842,1704509691802,-3428.35442654,0.00021559,2]
[310362843,1704509692088,-69.96641687,0.00021559,2]
[310367921,1704510851996,-1925.24924665,0.00020952,2]
[310367922,1704510852152,-39.29080095,0.00020952,2]
[310367923,1704510878766,276.09595198,0.000189,2]
[310367925,1704510982472,-309.54598108,0.00020938,2]
[310367926,1704510982744,-6.31726492,0.00020938,2]
[310367928,1704511077235,-322.57910218,0.00021436,2]
[310367929,1704511077263,-159.66505824,0.00021437,2]
[310367930,1704511077401,-9.84171756,0.00021437,2]
[310367931,1704511195321,-245.0,0.00020918,2]
[310367932,1704511195607,-5.0,0.00020918,2]
[310367933,1704511218243,-5000.0,0.00020923,2]
[310367934,1704511218529,-5000.0,0.00020923,2]
[310367935,1704511218639,-5000.0,0.00020923,2]
[310367936,1704511218811,-5000.0,0.00020923,2]
[310367937,1704511218921,-4900.0,0.00020923,2]
[310367938,1704511267794,-5000.0,0.00021331,2]
[310367939,1704511267934,-5000.0,0.00021331,2]
[310367940,1704511268094,-5000.0,0.00021331,2]
[310367941,1704511268341,-5000.0,0.00021331,2]
[310367942,1704511268405,-2942.978778,0.00021331,2]
[310367944,1704511446237,-1029.74071675,0.00020889,2]
[310367945,1704511446266,-134.17817621,0.0002089,2]
[310367946,1704511446335,-23.75344679,0.0002089,2]
[310367947,1704511480418,184.06396798,0.00019231,2]
[310367948,1704511528920,-212.77620315,0.00020846,2]
[310367949,1704511528948,-144.1106315,0.00020847,2]
[310367950,1704511529166,-7.28340479,0.00020847,2]
[310367952,1704511639311,-616.38207047,0.00020847,2]
[310367953,1704511639491,-12.57922593,0.00020847,2]
[310367954,1704511651589,-5000.0,0.0002156,2]
[310367955,1704511651693,-5000.0,0.0002156,2]
[310367956,1704511651872,-5000.0,0.0002156,2]
[310367957,1704511652093,-5000.0,0.0002156,2]
[310367958,1704511652195,-4900.0,0.0002156,2]
[310367959,1704511691550,-647.59581769,0.00020847,2]
[310367960,1704511691580,-162.0312801,0.00021139,2]
[310367961,1704511691811,-16.523002,0.00021139,2]
[310367962,1704511706559,-341.35404671,0.00020847,2]
[310367963,1704511706752,-6.96640912,0.00020847,2]
[310368003,1704511834608,-154.82968734,0.00021851,2]
[310368005,1704511834618,-268.8999641,0.00021851,2]
[310368006,1704511834629,-19645.0560538,0.00021852,2]
[310368007,1704511834639,-2991.89800169,0.00021852,2]
[310368008,1704511834649,-1577.33542027,0.00021852,2]
[310368009,1704511834659,-2028.3271136,0.00021853,2]
[310368010,1704511834670,-2706.33955526,0.00021853,2]
[310368011,1704511834680,-10487.05697578,0.00021853,2]
[310368012,1704511834690,-2633.35645047,0.00021854,2]
[310368013,1704511834700,-7858.42772256,0.00021855,2]
[310368014,1704511834710,-5948.34132013,0.00021855,2]
[310368015,1704511834719,-1023.92990205,0.00021857,2]
[310368016,1704511834729,-1029.74071675,0.00022956,2]
[310368017,1704511834738,-276.3757026,0.00022957,2]
[310368018,1704511834749,-18961.72270516,0.00022958,2]
[310368019,1704511834759,-262.41647265,0.00022999,2]
[310368020,1704511834770,-2091.44093784,0.00023,2]
[310368021,1704511834781,-154.75411821,0.00024131,2]
[310368022,1704511834792,-184.06396798,0.00024231,2]
[310368023,1704511834802,-312.6006807,0.000288,2]
[310368024,1704511834812,-2495.5726677,0.00029163,2]
[310368025,1704511834822,-184.06396798,0.00029231,2]
[310368026,1704511834832,-2615.09422939,0.0003,10]
[310368027,1704511834842,-326.30088987,0.0003039,4]
[310368028,1704511834852,-26383.15589177,0.00030391,4]
[310368029,1704511834863,-4431.19,0.0003058,3]
[310368030,1704511834873,-6380.91,0.0003059,3]
[310368031,1704511834883,-5317.43,0.0003059,3]
[310368032,1704511834893,-435.76620835,0.00030599,2]
[310368033,1704511834905,-191.08926689,0.00030599,2]
[310368034,1704511834916,-5923.12602689,0.000306,2]
[310368073,1704511837866,-322.14948125,0.00021851,2]
[310368075,1704511837876,-2352.63989372,0.0003059,3]
[310368386,1704511841173,-1340.02010628,0.0003059,3]
[310368388,1704511841182,-17373.29474167,0.000306,2]
[310368390,1704511841193,-8271.26628563,0.000306,2]
[310368392,1704511841205,-4549.5793402,0.000306,2]
[310368671,1704511844299,-783.42242501,0.000306,2]
[310368793,1704511845828,-180.01266372,0.00030599,4]
[310368795,1704511845837,-671.51102355,0.00030599,4]
[310369162,1704511855529,-5000.0,0.00020847,2]
[310369163,1704511855731,-5000.0,0.00020847,2]
[310369164,1704511855840,-272.46507257,0.00020847,2]
[310369165,1704511856040,1522.62507003,0.00020847,2]
[310369166,1704511860508,-535.29654887,0.00020847,2]
[310369167,1704511860628,-10.92441936,0.00020847,2]
[310369168,1704511861268,524.37212951,0.00020846,2]
[310369169,1704511861296,535.29654887,0.00020846,2]
[310369170,1704511861324,112.10515865,0.00020846,2]
[310369171,1704511867007,-606.47183056,0.00020847,2]
[310369172,1704511867173,-12.37697613,0.00020847,2]
[310369173,1704511868642,594.09485443,0.00020847,2]
[310369174,1704511868672,606.47183056,0.00020847,2]
[310369175,1704511869015,-5000.0,0.00020847,2]
[310369176,1704511869179,-3918.47401852,0.00020847,2]
[310369177,1704511869208,-1081.52598148,0.00020847,2]
[310369178,1704511869303,-2747.23319347,0.00020847,2]
[310369179,1704511870936,2252.76680653,0.00020847,2]
[310369180,1704511870966,956.66149241,0.00020847,2]
[310369181,1704511872055,301.69681844,0.00020847,2]
[310369182,1704511898472,-553.66023323,0.00020846,2]
[310369183,1704511898503,-4446.33976677,0.00020847,2]
[310369184,1704511898774,-5000.0,0.00020847,2]
[310369185,1704511898952,-826.1253058,0.00020847,2]
[310369186,1704511898982,-3826.78453431,0.00020847,2]
[310369187,1704511899012,-347.09015989,0.00020847,2]
[310369188,1704511899060,-1963.99568161,0.00020847,2]
[310369189,1704511913556,-4145.74447828,0.00020847,2]
[310369190,1704511913762,-84.60703017,0.00020847,2]
[310369366,1704513045234,-1465.14583138,0.00022718,2]
[310369367,1704513045244,-207.468905,0.00024156,2]
[310369368,1704513045254,-1029.74071675,0.00024487,2]
[310369369,1704513045263,-301.06112899,0.00024487,2]
[310369370,1704513045273,-360.43132424,0.00024488,2]